fUSD/lending_fUSD_20260130
["ID","MTS","AMOUNT","RATE_DAILY","PERIOD"]
[404070957,1769784646283,-300.0,0.00017999,2]
[404070958,1769784646292,-500.0,0.00017999,2]
[404070959,1769784646303,-436.47012991,0.00017999,2]
[404070960,1769784646312,-383.73447684,0.00017999,2]
[404070961,1769784646322,-1969453.9268207,0.00018,2]
[404070962,1769784646332,-2868156.78270666,0.00018,2]
[404070963,1769784646343,-1191.54065803,0.00018,2]
[404070964,1769784646353,-151.0,0.00018,2]
[404070965,1769784646362,-170.231382,0.00018,2]
[404070966,1769784646371,-151.0,0.00018,2]
[404070967,1769784646380,-151.0,0.00018,2]
[404070968,1769784646389,-151.0,0.00018,2]
[404070969,1769784646399,-202.655568,0.00018,2]
[404070970,1769784646408,-151.0,0.00018,2]
[404070971,1769784646419,-151.0,0.00018,2]
[404070972,1769784646428,-202.655568,0.00018,2]
[404070973,1769784646437,-202.655568,0.00018,2]
[404070974,1769784646447,-202.655568,0.00018,2]
[404070975,1769784646456,-151.0,0.00018,2]
[404070977,1769784646465,-151.0,0.00018,2]
[404070978,1769784646474,-151.0,0.00018,2]
[404070979,1769784646485,-151.0,0.00018,2]
[404070980,1769784646494,-151.0,0.00018,2]
[404070981,1769784646505,-151.0,0.00018,2]
[404070982,1769784646515,-151.0,0.00018,2]
[404070983,1769784646524,-152.08724,0.00018,2]
[404070984,1769784646534,-151.0,0.00018,2]
[404070985,1769784646545,-151.0,0.00018,2]
[404070986,1769784646555,-151.0,0.00018,2]
[404070987,1769784646566,-151.0,0.00018,2]
[404070988,1769784646575,-151.0,0.00018,2]
[404070989,1769784646585,-200.0,0.00018,2]
[404070990,1769784646597,-444.897922,0.00018,2]
[404070991,1769784646607,-367.054916,0.00018,2]
[404070992,1769784646617,-444.897922,0.00018,2]
[404070993,1769784646626,-367.054916,0.00018,2]
[404070994,1769784646636,-444.897922,0.00018,2]
[404070995,1769784646647,-367.054916,0.00018,2]
[404070996,1769784646656,-444.897922,0.00018,2]
[404070997,1769784646666,-367.054916,0.00018,2]
[404070998,1769784646675,-1502.0,0.00018,2]
[404070999,1769784646684,-1528.44528731,0.00018,2]
[404071000,1769784646695,-357.776911,0.00018,2]
[404071001,1769784646704,-357.776911,0.00018,2]
[404071002,1769784646715,-357.776911,0.00018,2]
[404071003,1769784646724,-357.776911,0.00018,2]
[404071004,1769784646733,-151.0,0.00018,2]
[404071005,1769784646742,-503.29314635,0.00018016,2]
[404071006,1769784646751,-2000.0,0.00018016,2]
[404071007,1769784646761,-1325.64130309,0.00018016,2]
[404071008,1769784646770,-613.56434793,0.00018016,2]
[404071009,1769784646779,-2000.0,0.00018016,2]
[404071010,1769784646789,-500.0,0.00018016,2]
[404071011,1769784646799,-2128.0,0.00018045,2]
[404071012,1769784646808,-772.81,0.00018149,2]
[404071013,1769784646818,-183.75,0.00018176,2]
[404071014,1769784646827,-2128.0,0.00018188,2]
[404071015,1769784646837,-300.0,0.00018203,2]
[404071016,1769784646847,-300.0,0.00018203,2]
[404071017,1769784646856,-300.0,0.00018203,2]
[404071018,1769784646866,-2128.0,0.0001829,2]
[404071019,1769784646876,-2128.0,0.00018331,2]
[404071020,1769784646885,-5888.0,0.00018348,2]
[404071021,1769784646896,-2128.0,0.00018377,2]
[404071022,1769784646906,-1252.0,0.0001839,2]
[404071023,1769784646918,-714.44,0.00018423,2]
[404071024,1769784646928,-2128.0,0.00018439,2]
[404071025,1769784646937,-1153.6744562,0.00018475,2]
[404071026,1769784646947,-2128.0,0.00018505,2]
[404071027,1769784646956,-166.66,0.0001851,2]
[404071028,1769784646966,-300.0,0.0001852,2]
[404071029,1769784646976,-300.0,0.0001852,2]
[404071030,1769784646985,-300.0,0.0001852,2]
[404071031,1769784646996,-1000.0,0.00018521,2]
[404071032,1769784647008,-524.93995843,0.00018521,2]
[404071033,1769784647017,-1000.0,0.00018521,2]
[404071034,1769784647027,-1000.0,0.00018521,2]
[404071035,1769784647036,-1000.0,0.00018521,2]
[404071036,1769784647047,-1000.0,0.00018521,2]
[404071037,1769784647057,-1000.0,0.00018521,2]
[404071038,1769784647068,-1000.0,0.00018521,2]
[404071039,1769784647077,-501.71313812,0.00018521,2]
[404071040,1769784647089,-1000.0,0.00018521,2]
[404071041,1769784647102,-1000.0,0.00018521,2]
[404071042,1769784647113,-393.88604428,0.00018521,2]
[404071043,1769784647122,-1000.0,0.00018521,2]
[404071044,1769784647131,-1002.36550973,0.00018521,2]
[404071045,1769784647143,-1000.0,0.00018521,2]
[404071046,1769784647152,-1000.0,0.00018521,2]
[404071047,1769784647163,-1000.0,0.00018521,2]
[404071048,1769784647175,-1003.90960822,0.00018521,2]
[404071049,1769784647184,-1000.0,0.00018521,2]
[404071050,1769784647193,-1000.0,0.00018521,2]
[404071051,1769784647203,-535.85460388,0.00018521,2]
[404071052,1769784647212,-1000.0,0.00018521,2]
[404071053,1769784647222,-1000.0,0.00018521,2]
[404071054,1769784647231,-1000.0,0.00018521,2]
[404071055,1769784647240,-1000.0,0.00018521,2]
[404071056,1769784647249,-1001.7423367,0.00018521,2]
[404071057,1769784647259,-1000.0,0.00018521,2]
[404071058,1769784647268,-1002.15998223,0.00018521,2]
[404071059,1769784647278,-150.0,0.00018521,2]
[404071060,1769784647287,-803.73051813,0.00018521,2]
[404071061,1769784647297,-1000.0,0.00018521,2]
[404071062,1769784647306,-1000.0,0.00018521,2]
[404071063,1769784647315,-1003.05950792,0.00018521,2]
[404071064,1769784647325,-1000.0,0.00018521,2]
[404071065,1769784647335,-1000.0,0.00018521,2]
[404071066,1769784647344,-505.87219837,0.00018521,2]
[404071067,1769784647353,-1000.0,0.00018521,2]
[404071068,1769784647366,-1000.0,0.00018521,2]
[404071069,1769784647376,-1000.0,0.00018521,2]
[404071070,1769784647385,-1000.0,0.00018521,2]
[404071071,1769784647394,-1093.37800921,0.00018521,2]
[404071072,1769784647404,-1000.0,0.00018521,2]
[404071073,1769784647413,-502.00704372,0.00018521,2]
[404071074,1769784647431,-563.6024582,0.00018521,2]
[404071075,1769784647440,-501.3344838,0.00018521,2]
[404071076,1769784647451,-1000.0,0.00018521,2]
[404071077,1769784647460,-1000.0,0.00018521,2]
[404071078,1769784647470,-1000.0,0.00018521,2]
[404071079,1769784647480,-1000.0,0.00018521,2]
[404071080,1769784647489,-1000.0,0.00018521,2]
[404071081,1769784647499,-1971.97230181,0.00018564,2]
[404071082,1769784647508,-500.0,0.00018564,2]
[404071083,1769784647517,-2128.0,0.00018621,2]
[404071084,1769784647527,-2128.0,0.00018658,2]
[404071085,1769784647537,-263.53,0.0001868,2]
[404071086,1769784647546,-2558.55,0.00018694,2]
[404071087,1769784647555,-2128.0,0.00018711,2]
[404071088,1769784647565,-2128.0,0.00018716,2]
[404071089,1769784647576,-2128.0,0.00018765,2]
[404071090,1769784647585,-2128.0,0.00018786,2]
[404071091,1769784647594,-2128.0,0.00018791,2]
[404071092,1769784647603,-150.0,0.00018844,5]
[404071093,1769784647612,-150.72769008,0.00018844,5]
[404071094,1769784647622,-308.00826223,0.00018845,2]
[404071095,1769784647631,-16788.98356141,0.00018888,2]
[404071096,1769784647640,-2128.0,0.00018892,2]
[404071097,1769784647651,-300.0,0.00018899,2]
[404071098,1769784647661,-300.0,0.00018899,2]
[404071099,1769784647675,-2128.0,0.00018899,2]
[404071100,1769784647684,-30000.0,0.000189,7]
[404071101,1769784647693,-5087.21858632,0.000189,3]
[404071102,1769784647702,-88318.97900609,0.000189,2]
[404071103,1769784647713,-150.49724474,0.000189,2]
[404071104,1769784647722,-1000.0,0.00018912,2]
[404071105,1769784647731,-25000.0,0.00018936,3]
[404071106,1769784647740,-25000.0,0.00018945,3]
[404071107,1769784647750,-25000.0,0.00018954,3]
[404071108,1769784647760,-25000.0,0.00018962,3]
[404071109,1769784647770,-25000.0,0.00018971,3]
[404071110,1769784647779,-25000.0,0.0001898,3]
[404071111,1769784647788,-25000.0,0.00018989,3]
[404071112,1769784647798,-25000.0,0.00018998,3]
[404071113,1769784647807,-5170.45549193,0.00019,2]
[404071114,1769784647816,-389.15849174,0.00019,2]
[404071115,1769784647826,-300.0,0.00019,2]
[404071116,1769784647835,-502.0,0.00019,2]
[404071117,1769784647845,-25000.0,0.00019006,3]
[404071118,1769784647855,-25000.0,0.00019015,3]
[404071119,1769784647866,-25000.0,0.00019024,3]
[404071120,1769784647877,-25000.0,0.00019033,3]
[404071121,1769784647886,-25000.0,0.00019042,3]
[404071122,1769784647896,-166.66,0.0001905,2]
[404071123,1769784647905,-25000.0,0.0001905,3]
[404071124,1769784647914,-25000.0,0.00019059,3]
[404071125,1769784647926,-300.0,0.00019067,2]
[404071126,1769784647935,-300.0,0.00019067,2]
[404071127,1769784647945,-25000.0,0.00019068,3]
[404071128,1769784647955,-15339.73797614,0.00019068,3]
[404071129,1769784647965,-502.7983438,0.00019068,2]
[404071130,1769784647974,-1500.0,0.00019068,2]
[404071131,1769784647984,-1500.0,0.00019068,2]
[404071132,1769784647995,-1503.64430583,0.00019068,2]
[404071133,1769784648004,-1500.0,0.00019068,2]
[404071134,1769784648013,-1500.0,0.00019068,2]
[404071135,1769784648024,-1004.70133211,0.00019068,2]
[404071136,1769784648033,-195.80691697,0.00019068,2]
[404071137,1769784648042,-1003.8458017,0.00019068,2]
[404071138,1769784648052,-1503.47344259,0.00019068,2]
[404071139,1769784648062,-1500.0,0.00019068,2]
[404071140,1769784648071,-501.82931453,0.00019068,2]
[404071141,1769784648081,-1500.0,0.00019068,2]
[404071142,1769784648092,-288.05199057,0.00019068,2]
[404071143,1769784648104,-1500.0,0.00019068,2]
[404071144,1769784648114,-1500.0,0.00019068,2]
[404071145,1769784648124,-1003.32803614,0.00019068,2]
[404071146,1769784648136,-1500.0,0.00019068,2]
[404071147,1769784648146,-643.5873001,0.00019068,2]
[404071148,1769784648157,-1403.11901333,0.00019068,2]
[404071149,1769784648168,-237.74347916,0.00019068,2]
[404071150,1769784648178,-1500.0,0.00019068,2]
[404071151,1769784648188,-1500.0,0.00019068,2]
[404071152,1769784648197,-1500.0,0.00019068,2]
[404071153,1769784648206,-1500.0,0.00019068,2]
[404071154,1769784648216,-1500.0,0.00019068,2]
[404071155,1769784648225,-1500.0,0.00019068,2]
[404071156,1769784648236,-907.59711898,0.00019068,2]
[404071157,1769784648245,-1500.0,0.00019068,2]
[404071158,1769784648255,-1500.0,0.00019068,2]
[404071159,1769784648264,-1500.0,0.00019068,2]
[404071160,1769784648274,-1500.0,0.00019068,2]
[404071161,1769784648283,-1500.0,0.00019068,2]
[404071162,1769784648293,-1500.0,0.00019068,2]
[404071163,1769784648302,-1500.0,0.00019068,2]
[404071164,1769784648312,-1075.4,0.00019077,2]
[404071165,1769784648321,-2128.0,0.00019122,2]
[404071166,1769784648330,-2128.0,0.0001914,2]
[404071167,1769784648340,-500.0,0.00019178,2]
[404071168,1769784648349,-500.0,0.00019178,2]
[404071169,1769784648359,-580.76903245,0.00019178,2]
[404071170,1769784648368,-500.0,0.00019178,2]
[404071171,1769784648379,-500.0,0.00019178,2]
[404071172,1769784648388,-500.0,0.00019178,2]
[404071173,1769784648398,-500.0,0.00019178,2]
[404071174,1769784648585,-500.0,0.00019178,2]
[404071175,1769784648598,-500.0,0.00019178,2]
[404071176,1769784648609,-500.0,0.00019178,2]
[404071177,1769784648619,-500.0,0.00019178,2]
[404071178,1769784648628,-500.0,0.00019178,2]
[404071179,1769784648641,-500.0,0.00019178,2]
[404071180,1769784648651,-500.0,0.00019178,2]
[404071181,1769784648662,-450.0,0.00019178,2]
[404071182,1769784648673,-2011.85999459,0.00019178,12]
[404071183,1769784648683,-151.0,0.00019178,2]
[404071184,1769784648692,-156.346978,0.00019178,2]
[404071185,1769784648704,-151.0,0.00019178,2]
[404071186,1769784648714,-151.0,0.00019178,2]
[404071187,1769784648725,-151.0,0.00019178,2]
[404071188,1769784648737,-205.0,0.00019178,2]
[404071189,1769784648749,-2877.185662,0.00019178,2]
[404071190,1769784648759,-2877.185662,0.00019178,2]
[404071191,1769784648769,-2877.185662,0.00019178,2]
[404071192,1769784648779,-2877.185662,0.00019178,2]
[404071193,1769784648792,-3656.743551,0.00019178,2]
[404071194,1769784648803,-3656.743551,0.00019178,2]
[404071195,1769784648813,-3656.743551,0.00019178,2]
[404071196,1769784648824,-3656.743551,0.00019178,2]
[404071197,1769784648833,-150.19060405,0.00019178,2]
[404071198,1769784648843,-160.81086375,0.00019178,2]
[404071199,1769784648852,-2128.0,0.00019245,2]
[404071200,1769784648862,-2128.0,0.00019345,2]
[404071201,1769784648872,-690.72205831,0.00019356,2]
[404071202,1769784648883,-319.4,0.00019384,2]
[404071203,1769784648893,-2128.0,0.00019392,2]
[404071204,1769784648903,-500.0,0.00019425,2]
[404071205,1769784648912,-263.53,0.00019427,2]
[404071206,1769784648923,-2128.0,0.00019427,2]
[404071207,1769784648933,-219.9,0.00019455,2]
[404071208,1769784648943,-158.77663044,0.00019475,2]
[404071209,1769784648953,-13403.0,0.000195,2]
[404071210,1769784648963,-4609.0,0.00019568,2]
[404071211,1769784648973,-2128.0,0.00019574,2]
[404071212,1769784648983,-319.4,0.00019589,2]
[404071213,1769784648994,-358.29251856,0.00019615,2]
[404071214,1769784649004,-300.0,0.00019615,2]
[404071215,1769784649015,-2000.0,0.00019616,2]
[404071216,1769784649026,-2067.46525719,0.00019616,2]
[404071217,1769784649037,-2000.0,0.00019616,2]
[404071218,1769784649047,-2000.0,0.00019616,2]
[404071219,1769784649057,-2000.0,0.00019616,2]
[404071220,1769784649072,-676.76997938,0.00019616,2]
[404071221,1769784649085,-802.6302377,0.00019616,2]
[404071222,1769784649097,-2000.0,0.00019616,2]
[404071223,1769784649106,-789.92758812,0.00019616,2]
[404071224,1769784649117,-2000.0,0.00019616,2]
[404071225,1769784649128,-2000.0,0.00019616,2]
[404071226,1769784649140,-2000.0,0.00019616,2]
[404071227,1769784649149,-2000.0,0.00019616,2]
[404071228,1769784649160,-2000.0,0.00019616,2]
[404071229,1769784649171,-2000.0,0.00019616,2]
[404071230,1769784649181,-2004.44245544,0.00019616,2]
[404071231,1769784649191,-1004.70692071,0.00019616,2]
[404071232,1769784649200,-2000.0,0.00019616,2]
[404071233,1769784649212,-2000.0,0.00019616,2]
[404071234,1769784649222,-2000.0,0.00019616,2]
[404071235,1769784649232,-503.45670612,0.00019616,2]
[404071236,1769784649242,-2000.0,0.00019616,2]
[404071237,1769784649252,-2128.0,0.00019646,2]
[404071238,1769784649263,-219.9,0.00019665,2]
[404071239,1769784649274,-2000.0,0.000197,2]
[404071240,1769784649283,-183.75,0.00019774,2]
[404071241,1769784649293,-319.4,0.00019795,2]
[404071242,1769784649303,-219.89300498,0.00019874,2]
[404071243,1769784649313,-1783.0,0.00019914,2]
[404071244,1769784649323,-502.0,0.00019924,2]
[404071245,1769784649334,-183.75,0.00019974,2]
[404071246,1769784649345,-300.0,0.00019999,2]
[404071247,1769784649355,-1000.0,0.0002,7]
[404071248,1769784649365,-1533.70273681,0.0002,2]
[404071249,1769784649375,-22043.3732302,0.0002,2]
[404071250,1769784649638,-3558.58344556,0.0002,2]
[404071251,1769784649648,-2464.68,0.0002,2]
[404071252,1769784649657,-3950.0,0.0002,2]
[404071253,1769784649666,-1859.12096165,0.0002,14]
[404071254,1769784649729,-417.459,0.0002,14]
[404071255,1769784649740,-7326.6305,0.0002,14]
[404071256,1769784650230,-1.7e-07,0.0002,14]
[404071257,1769784650894,-5315.1,0.00013348,2]
[404071258,1769784650906,-867.81857881,0.00013348,2]
[404071259,1769784650918,-1671361.30265143,0.00013348,2]
[404071260,1769784650929,-391.60816812,0.00013348,2]
[404071261,1769784651098,-901.97999996,0.00013348,2]
[404071262,1769784651184,-13960.82583248,0.00013348,2]
[404071263,1769784651198,-530.23719591,0.00013348,2]
[404071264,1769784651222,-1285.8,0.00013348,2]
[404071265,1769784651237,-705385.32757329,0.00013348,2]
[404071266,1769784651247,-2043.12262497,0.00013366,2]
[404071267,1769784651256,-18916.25922388,0.00013366,2]
[404071268,1769784651266,-151.0,0.00018,2]
[404071269,1769784651275,-22738.58558534,0.0002,14]
[404071270,1769784651291,-5532.47057616,0.0002,14]
[404071271,1769784651301,-1294.86801135,0.0002,2]
[404071272,1769784651310,-498.49982357,0.0002,10]
[404071273,1769784651319,-1045.22959778,0.0002,2]
[404071274,1769784651331,-2864.35930416,0.0002,2]
[404071275,1769784651341,-12927.32038502,0.0002,2]
[404071276,1769784651351,-160.76516136,0.0002,10]
[404071277,1769784651360,-152.0,0.0002,2]
[404071278,1769784651371,-265.9577188,0.0002,2]
[404071279,1769784651380,-164.60056123,0.0002,2]
[404071280,1769784651390,-200.0,0.0002,2]
[404071281,1769784651399,-151.0,0.00020029,2]
[404071282,1769784651408,-156.587,0.00020029,2]
[404071283,1769784651417,-162.380719,0.00020029,2]
[404071284,1769784651427,-157.32475157,0.00020029,2]
[404071285,1769784651436,-199.07364582,0.00020029,2]
[404071286,1769784651447,-209.40437684,0.00020029,2]
[404071287,1769784651457,-322.6107,0.00020029,2]
[404071288,1769784651467,-174.61919141,0.00020029,2]
[404071289,1769784651477,-854.2589148,0.00020029,2]
[404071290,1769784651487,-150.0,0.00020073,2]
[404071291,1769784651498,-150.0,0.00020073,2]
[404071292,1769784651508,-500.43732216,0.00020073,2]
[404071293,1769784651518,-164.4116579,0.00020073,2]
[404071294,1769784651528,-217.15233878,0.00020084,2]
[404071295,1769784651538,-225.18697532,0.00020139,2]
[404071296,1769784651547,-500.0,0.00020141,2]
[404071297,1769784651556,-300.0,0.00020163,2]
[404071298,1769784651565,-1138.23968233,0.00020164,2]
[404071299,1769784651574,-2500.0,0.00020164,2]
[404071300,1769784651583,-659.71197023,0.00020164,2]
[404071301,1769784651592,-2500.0,0.00020164,2]
[404071302,1769784651602,-2500.0,0.00020164,2]
[404071303,1769784651611,-2500.0,0.00020164,2]
[404071304,1769784651621,-1000.05166719,0.00020164,2]
[404071305,1769784651630,-1000.0,0.00020164,2]
[404071306,1769784651642,-982.05632992,0.00020164,2]
[404071307,1769784651652,-2003.01558434,0.00020164,2]
[404071308,1769784651661,-2500.0,0.00020164,2]
[404071309,1769784651671,-2500.0,0.00020164,2]
[404071310,1769784651683,-995.12289102,0.00020164,2]
[404071311,1769784651694,-2500.0,0.00020164,2]
[404071312,1769784651703,-2500.0,0.00020164,2]
[404071313,1769784651714,-263.53,0.00020175,2]
[404071314,1769784651723,-233.51889341,0.00020194,2]
[404071315,1769784651732,-242.15909246,0.00020249,2]
[404071316,1769784651743,-251.11897888,0.00020304,2]
[404071317,1769784651755,-418.96819587,0.00020345,2]
[404071318,1769784651774,-260.4103811,0.00020359,2]
[404071319,1769784651786,-1075.4,0.00020396,2]
[404071320,1769784651797,-500.0,0.00020411,2]
[404071321,1769784651807,-270.0455652,0.00020414,2]
[404071322,1769784651817,-280.03725112,0.00020469,2]
[404071323,1769784651827,-290.39862941,0.00020524,2]
[404071324,1769784651837,-154.32,0.00020548,2]
[404071325,1769784651847,-181.08010149,0.00020577,2]
[404071326,1769784651858,-885.86649465,0.00020577,2]
[404071327,1769784651868,-301.1433787,0.00020579,2]
[404071328,1769784651878,-3479.0,0.0002059,2]
[404071329,1769784651888,-1409.0,0.0002059,2]
[404071330,1769784651898,-1334.0,0.0002059,2]
[404071331,1769784651907,-616.0,0.0002059,2]
[404071332,1769784651916,-1270.0,0.0002059,2]
[404071333,1769784651926,-311.74,0.0002059,2]
[404071334,1769784651935,-2444.0,0.0002059,2]
[404071335,1769784651944,-6575.0,0.0002059,2]
[404071336,1769784651953,-5532.0,0.000206,3]
[404071337,1769784651963,-250.0,0.00020621,2]
[404071338,1769784651972,-300.0,0.00020621,2]
[404071339,1769784651982,-3000.0,0.00020712,2]
[404071340,1769784651993,-3000.0,0.00020712,2]
[404071341,1769784652002,-3000.0,0.00020712,2]
[404071342,1769784652012,-2500.0,0.00020712,2]
[404071343,1769784652022,-1574.61207896,0.00020712,2]
[404071344,1769784652031,-213.12938969,0.00020712,2]
[404071345,1769784652040,-185.00671235,0.00020712,2]
[404071346,1769784652049,-3000.0,0.00020712,2]
[404071347,1769784652058,-1000.0,0.00020803,2]
[404071348,1769784652067,-502.0,0.00020848,3]
[404071349,1769784652078,-603.96523111,0.0002097,2]
[404071350,1769784652089,-700.0,0.0002097,2]
[404071351,1769784652104,-802.17815938,0.0002097,2]
[404071352,1769784652113,-20000.0,0.00021,2]
[404071353,1769784652122,-263.47,0.00021,7]
[404071354,1769784652134,-40000.0,0.00021,2]
[404071355,1769784652144,-1194.07940905,0.00021,2]
[404071356,1769784652153,-197.09273474,0.00021,2]
[404071357,1769784652164,-137746.45434619,0.00021,2]
[404071358,1769784652176,-187053.16971552,0.00021,2]
[404071359,1769784652186,-350.0,0.00021,2]
[404071360,1769784652196,-1153.6744562,0.0002103,2]
[404071361,1769784652205,-1215.84,0.00021068,2]
[404071362,1769784652215,-187.78006525,0.00021125,2]
[404071363,1769784652225,-918.64355495,0.00021125,2]
[404071364,1769784652235,-350.0,0.00021168,2]
[404071365,1769784652245,-450.0,0.00021168,2]
[404071366,1769784652255,-253.86921653,0.0002126,2]
[404071367,1769784652264,-2220.1419016,0.0002126,2]
[404071368,1769784652275,-2186.47486829,0.0002126,2]
[404071369,1769784652284,-3500.0,0.0002126,2]
[404071370,1769784652294,-334.5472959,0.00021398,2]
[404071371,1769784652304,-57582.57972796,0.000215,2]
[404071372,1769784652313,-222.32312177,0.000215,2]
[404071373,1769784652323,-6453.0,0.00021524,2]
[404071374,1769784652332,-158.77663044,0.00021638,2]
[404071375,1769784652342,-194.72792766,0.00021673,2]
[404071376,1769784652352,-952.63336648,0.00021673,2]
[404071377,1769784652361,-5532.0,0.000217,5]
[404071378,1769784652370,-1075.4,0.00021715,2]
[404071379,1769784652380,-450.0,0.00021716,2]
[404071380,1769784652390,-199.91174027,0.00021716,2]
[404071381,1769784652399,-502.0,0.00021773,4]
[404071382,1769784652409,-4000.0,0.00021808,2]
[404071383,1769784652420,-204.38,0.00021902,2]
[404071384,1769784652429,-5000.0,0.00021918,2]
[404071385,1769784652439,-151.0,0.00021918,2]
[404071386,1769784652448,-151.0,0.00021918,2]
[404071387,1769784652457,-150.0,0.00021973,2]
[404071388,1769784652467,-150.0,0.00021973,2]
[404071389,1769784652477,-150.0,0.00021973,2]
[404071390,1769784652487,-150.0,0.00021973,2]
[404071391,1769784652496,-500.0,0.00021973,2]
[404071392,1769784652505,-150.0,0.00021973,2]
[404071393,1769784652514,-150.0,0.00021973,2]
[404071394,1769784652524,-150.0,0.00021973,2]
[404071395,1769784652533,-150.0,0.00021973,2]
[404071396,1769784652542,-150.0,0.00021973,2]
[404071397,1769784652551,-150.0,0.00021973,2]
[404071398,1769784652560,-500.0,0.00021973,2]
[404071399,1769784652569,-500.0,0.00021973,2]
[404071400,1769784652578,-150.0,0.00021973,2]
[404071401,1769784652587,-150.0,0.00021973,2]
[404071402,1769784652596,-150.0,0.00021973,2]
[404071403,1769784652605,-150.0,0.00021973,2]
[404071404,1769784652615,-150.0,0.00021973,2]
[404071405,1769784652624,-150.0,0.00021973,2]
[404071406,1769784652633,-500.0,0.00021973,2]
[404071407,1769784652642,-150.0,0.00021973,2]
[404071408,1769784652651,-500.0,0.00021973,2]
[404071409,1769784652660,-500.0,0.00021973,2]
[404071410,1769784652670,-150.0,0.00021973,2]
[404071411,1769784652680,-150.0,0.00021973,2]
[404071412,1769784652689,-38410.68578782,0.00022,4]
[404071413,1769784652699,-2728.55,0.00022,7]
[404071414,1769784652707,-5528.53,0.00022,2]
[404071415,1769784652717,-8566.57308976,0.00022,15]
[404071416,1769784652726,-150.0,0.00022028,2]
[404071417,1769784652735,-150.0,0.00022028,2]
[404071418,1769784652744,-150.0,0.00022028,2]
[404071419,1769784652753,-150.0,0.00022028,2]
[404071420,1769784652762,-500.0,0.00022028,2]
[404071421,1769784652772,-150.0,0.00022028,2]
[404071422,1769784652781,-150.0,0.00022028,2]
[404071423,1769784652790,-150.0,0.00022028,2]
[404071424,1769784652800,-150.0,0.00022028,2]
[404071425,1769784652809,-150.0,0.00022028,2]
[404071426,1769784652818,-500.0,0.00022028,2]
[404071427,1769784652827,-500.0,0.00022028,2]
[404071428,1769784652836,-150.0,0.00022028,2]
[404071429,1769784652845,-150.0,0.00022028,2]
[404071430,1769784652854,-150.0,0.00022028,2]
[404071431,1769784652863,-150.0,0.00022028,2]
[404071432,1769784652872,-500.0,0.00022028,2]
[404071433,1769784652881,-500.0,0.00022028,2]
[404071434,1769784652890,-500.0,0.00022028,2]
[404071435,1769784652899,-150.0,0.00022028,2]
[404071436,1769784652910,-150.0,0.00022028,2]
[404071437,1769784652921,-150.0,0.00022083,2]
[404071438,1769784652930,-150.0,0.00022083,2]
[404071439,1769784652939,-150.0,0.00022083,2]
[404071440,1769784652949,-500.0,0.00022083,2]
[404071441,1769784652958,-150.0,0.00022083,2]
[404071442,1769784652967,-200.0,0.00022083,2]
[404071443,1769784652976,-272.18032737,0.00022083,2]
[404071444,1769784652985,-150.0,0.00022083,2]
[404071445,1769784652995,-150.0,0.00022083,2]
[404071446,1769784653004,-500.0,0.00022083,2]
[404071447,1769784653014,-200.0,0.00022083,2]
[404071448,1769784653024,-200.0,0.00022083,2]
[404071449,1769784653033,-200.0,0.00022083,2]
[404071450,1769784653044,-200.0,0.00022083,2]
[404071451,1769784653054,-200.93103506,0.00022083,2]
[404071452,1769784653064,-500.0,0.00022083,2]
[404071453,1769784653073,-500.0,0.00022083,2]
[404071454,1769784653083,-500.0,0.00022083,2]
[404071455,1769784653096,-150.0,0.00022083,2]
[404071456,1769784653112,-150.0,0.00022083,2]
[404071457,1769784653128,-3656.743551,0.00022137,2]